bitfinex/quotes_SOLUSD_20241111
["timestamp","ask_amount","ask_price","bid_price","bid_amount"]
[1731308294383,17.52451848,207.15,207.07,34.15801848]
[1731308294682,6.4748,207.18,207.07,34.15801848]
[1731308294876,17.52451848,207.15,207.07,34.15801848]
[1731308295289,17.52451848,207.14,207.08,0.12549]
[1731308295765,17.52451848,207.14,207.07,16.6335]
[1731308296174,17.52451848,207.14,207.08,0.12549]
[1731308296970,17.52451848,207.12,207.07,16.6335]
[1731308297171,17.52451848,207.12,207.04,17.52451848]
[1731308297373,11.3016,207.18,207.02,15.7093]
[1731308297374,17.52451848,207.08,207.02,15.7093]
[1731308297567,17.52451848,207.04,206.96,35.84255578]
[1731308297772,17.52451848,207.04,206.96,33.23381848]
[1731308297977,17.52451848,207.02,206.94,17.52451848]
[1731308298189,17.52451848,207.02,206.95,0.12549]
[1731308298874,17.52451848,207.0,206.92,17.52451848]
[1731308299670,17.52451848,207.0,206.93,0.12549]
[1731308300068,27.112,207.09,206.93,0.12549]
[1731308300069,17.52451848,207.02,206.95,0.12549]
[1731308300269,22.2831,207.09,206.97,0.12549]
[1731308300270,17.52451848,207.04,206.97,0.12549]
[1731308300775,17.52451848,207.04,206.91,20.84002502]
[1731308300776,17.52451848,207.02,206.93,17.52451848]
[1731308300986,17.52451848,207.0,206.91,38.2645435]
[1731308301302,17.52451848,207.0,206.92,0.12549]
[1731308301474,17.52451848,206.98,206.92,0.12549]
[1731308301790,17.52451848,206.98,206.89,17.52451848]
[1731308302087,17.52451848,206.98,206.9,0.12549]
[1731308302496,17.52451848,207.0,206.92,0.12549]
[1731308303298,17.52451848,207.0,206.92,23.902374]
[1731308303877,17.52451848,206.93,206.71,0.1]
[1731308304077,17.52451848,206.93,206.69,0.1]
[1731308304078,17.52451848,206.83,206.74,17.52451848]
[1731308304689,17.52451848,206.83,206.75,0.12549]
[1731308304897,28.0857803,206.83,206.74,28.0857803]
[1731308305614,28.0857803,206.83,206.75,0.12549]
[1731308306400,28.0857803,206.83,206.75,23.776884]
[1731308307381,28.0857803,206.83,206.76,0.12549]
[1731308307581,28.0857803,206.83,206.75,23.776884]
[1731308307978,28.0857803,206.83,206.76,0.12549]
[1731308309205,28.0857803,206.85,206.78,0.12549]
[1731308313207,28.0857803,206.85,206.78,28.2112703]
[1731308313403,28.0857803,206.89,206.8,28.2112703]
[1731308313589,28.0857803,206.87,206.8,28.2112703]
[1731308313786,28.0857803,206.87,206.78,28.0857803]
[1731308314093,28.0857803,206.85,206.78,0.12549]
[1731308314288,28.0857803,206.83,206.78,0.12549]
[1731308314502,28.0857803,206.83,206.75,23.776884]
[1731308314703,28.0857803,206.79,206.7,6.4254]
[1731308315008,28.0857803,206.79,206.7,34.5111803]
[1731308315183,28.0857803,206.79,206.71,0.12549]
[1731308315382,28.0857803,206.79,206.7,28.0857803]
[1731308315597,28.0857803,206.77,206.7,28.0857803]
[1731308315802,28.0857803,206.77,206.71,0.12549]
[1731308315999,28.0857803,206.75,206.71,0.12549]
[1731308316302,28.0857803,206.75,206.67,44.3352803]
[1731308316490,28.0857803,206.75,206.67,28.0857803]
[1731308317103,28.0857803,206.71,206.63,28.0857803]
[1731308317284,28.0857803,206.69,206.62,15.5267]
[1731308317607,28.0857803,206.69,206.61,33.10929465]
[1731308317904,28.0857803,206.69,206.61,5.02351435]
[1731308318107,28.0857803,206.69,206.62,0.12549]
[1731308318312,28.0857803,206.71,206.64,0.12549]
[1731308318606,28.0857803,206.71,206.63,28.0857803]
[1731308318904,28.0857803,206.75,206.67,28.0857803]
[1731308319089,28.0857803,206.73,206.67,28.0857803]
[1731308319694,28.0857803,206.73,206.68,0.12549]
[1731308320203,28.0857803,206.75,206.68,0.12549]
[1731308320507,28.0857803,206.74,206.67,0.12549]
[1731308321211,28.0857803,206.76,206.69,23.902374]
[1731308321783,34.4663803,206.77,206.7,28.0857803]
[1731308321998,28.0857803,206.75,206.69,23.902374]
[1731308323806,28.0857803,206.73,206.67,23.776884]
[1731308324004,28.0857803,206.75,206.67,51.8626643]
[1731308324210,28.0857803,206.75,206.68,0.12549]
[1731308324696,6.1986,206.87,206.69,21.9149]
[1731308324898,6.1986,206.87,206.77,17.55645461]
[1731308325109,17.55645461,206.85,206.77,17.55645461]
[1731308325405,17.55645461,206.83,206.76,0.12549]
[1731308325715,17.55645461,206.83,206.76,23.902374]
[1731308325918,17.55645461,206.85,206.77,17.55645461]
[1731308326626,23.75505461,206.87,206.79,17.55645461]
[1731308326904,23.75505461,206.87,206.72,17.55645461]
[1731308326905,17.55645461,206.8,206.72,17.55645461]
[1731308327107,17.55645461,206.8,206.73,23.776884]
[1731308327310,17.55645461,206.8,206.73,0.12549]
[1731308327610,17.55645461,206.78,206.72,0.12549]
[1731308327783,17.55645461,206.8,206.71,23.776884]
[1731308327981,17.55645461,206.78,206.71,23.776884]
[1731308329411,17.55645461,206.76,206.7,2.61382265]
[1731308329606,17.55645461,206.76,206.61,15.5338]
[1731308329807,17.55645461,206.76,206.62,43.776884]
[1731308330010,17.55645461,206.76,206.68,23.776884]
[1731308330312,17.55645461,206.76,206.69,0.12549]
[1731308330919,17.55645461,206.76,206.68,23.776884]
[1731308330920,17.55645461,206.81,206.73,17.55645461]
[1731308331598,17.55645461,206.81,206.74,23.776884]
[1731308332394,17.55645461,206.83,206.76,23.776884]
[1731308333908,17.55645461,206.81,206.73,17.55645461]
[1731308334099,17.55645461,206.81,206.74,23.902374]
[1731308335808,17.55645461,206.79,206.65,15.9196]
[1731308336015,17.55645461,206.76,206.68,17.55645461]
[1731308336197,17.55645461,206.8,206.72,17.55645461]
[1731308337296,17.55645461,206.8,206.73,23.776884]
[1731308338520,62.00775461,206.88,206.73,23.776884]
[1731308338521,15.5113,206.88,206.79,17.55645461]
[1731308338810,17.55645461,206.89,206.82,17.55645461]
[1731308338990,6.446,206.92,206.75,16.4875]
[1731308338991,17.55645461,206.87,206.75,16.4875]
[1731308339193,17.55645461,206.87,206.78,23.776884]
[1731308339492,17.55645461,206.91,206.84,0.12549]
[1731308339696,24.01495461,206.97,206.89,17.55645461]
[1731308340506,24.01495461,206.97,206.79,20.1]
[1731308340507,17.55645461,206.95,206.79,20.1]
[1731308340709,17.55645461,206.95,206.86,17.55645461]
[1731308340895,17.55645461,206.93,206.86,17.55645461]
[1731308341219,24.01495461,206.97,206.89,23.776884]
[1731308341405,5.02022819,206.98,206.92,17.55645461]
[1731308341607,22.5766828,206.98,206.9,17.55645461]
[1731308342112,17.55645461,206.96,206.89,23.776884]
[1731308343214,17.55645461,206.96,206.88,17.55645461]
[1731308343412,17.55645461,206.96,206.87,23.776884]
[1731308344511,17.55645461,206.96,206.88,17.55645461]
[1731308344696,17.55645461,206.98,206.89,23.776884]
[1731308344894,17.55645461,207.0,206.92,17.55645461]
[1731308345501,6.6594,207.03,206.96,17.55645461]
[1731308346318,17.55645461,207.02,206.94,17.55645461]
[1731308346509,17.55645461,207.02,206.92,17.55645461]
[1731308346894,17.55645461,207.0,206.92,17.55645461]
[1731308348421,17.55645461,207.02,206.94,17.55645461]
[1731308348612,17.55645461,207.02,206.95,23.776884]
[1731308349304,6.6594,207.03,206.96,17.55645461]
[1731308350214,17.55645461,207.05,206.98,17.55645461]
[1731308350924,17.55645461,207.05,206.96,17.68194461]
[1731308353025,17.55645461,207.05,206.98,17.55645461]
[1731308353206,17.55645461,207.07,206.98,17.55645461]
[1731308354221,15.8781,207.08,206.98,17.55645461]
[1731308354222,17.55645461,207.05,206.98,17.55645461]
[1731308354822,17.55645461,207.07,207.0,17.55645461]
[1731308355035,6.1609,207.09,207.02,17.55645461]
[1731308355036,23.71735461,207.09,207.02,17.55645461]
[1731308356416,17.55645461,207.07,207.0,17.55645461]
[1731308356619,17.55645461,207.07,206.98,17.55645461]
[1731308357816,17.55645461,207.05,206.98,17.55645461]
[1731308358016,17.55645461,207.03,206.96,17.55645461]
[1731308358230,17.55645461,207.03,206.94,17.55645461]
[1731308360839,17.55645461,207.05,206.98,17.55645461]
[1731308362538,17.55645461,207.07,206.98,17.55645461]
[1731308363031,17.55645461,207.07,207.0,17.55645461]
[1731308364810,17.55645461,207.01,206.91,2.58218462]
[1731308365023,17.55645461,206.99,206.9,17.55645461]
[1731308365630,17.55645461,206.99,206.91,0.12549]
[1731308366331,17.55645461,206.99,206.91,23.902374]
[1731308367215,17.55645461,207.01,206.92,37.55645461]
[1731308369130,17.55645461,207.01,206.93,23.902374]
[1731308369440,17.55645461,207.01,206.92,37.55645461]
[1731308370314,21.3101,207.08,206.95,0.12549]
[1731308370315,17.55645461,207.03,206.95,0.12549]
[1731308370515,17.55645461,207.03,206.95,23.902374]
[1731308370710,17.55645461,207.03,206.96,17.55645461]
[1731308371033,17.55645461,207.07,206.98,17.55645461]
[1731308371637,17.55645461,207.07,207.0,17.55645461]
[1731308371935,21.3101,207.08,207.0,17.55645461]
[1731308372226,21.3101,207.08,207.02,17.55645461]
[1731308372427,6.1648,207.08,207.02,17.55645461]
[1731308373936,6.1648,207.08,207.0,17.55645461]
[1731308374146,17.55645461,207.09,207.01,0.12549]
[1731308374439,17.55645461,207.11,207.03,0.12549]
[1731308379327,17.55645461,207.09,207.0,17.55645461]
[1731308379921,17.55645461,207.07,207.0,17.55645461]
[1731308380218,17.55645461,207.07,206.99,20.12549]
[1731308382226,17.55645461,207.09,207.0,17.55645461]
[1731308383529,17.55645461,207.09,206.99,20.12549]
[1731308383725,17.55645461,207.07,206.99,20.12549]
[1731308384037,17.55645461,207.07,206.99,43.902374]
[1731308384236,17.55645461,207.07,207.0,17.55645461]
[1731308390832,17.55645461,207.09,207.0,17.55645461]
[1731308392148,27.4631,207.13,206.99,43.902374]
[1731308392149,17.55645461,207.11,207.04,17.55645461]
[1731308392623,17.55645461,207.11,207.02,17.55645461]
[1731308392940,17.55645461,207.09,207.01,20.0]
[1731308393142,17.55645461,207.07,206.99,23.776884]
[1731308393347,17.55645461,207.05,206.96,17.55645461]
[1731308394025,3.60439347,207.04,206.97,0.12549]
[1731308394357,17.55645461,207.05,206.97,0.12549]
[1731308394643,3.60464044,207.04,206.97,0.12549]
[1731308394939,17.55645461,207.05,206.97,0.12549]
[1731308395243,17.55645461,207.05,206.96,17.55645461]
[1731308395443,17.55645461,207.03,206.96,17.55645461]
[1731308396033,17.55645461,207.03,206.94,17.68194461]
[1731308396232,3.60476134,207.02,206.95,20.0]
[1731308396450,17.55645461,207.03,206.95,20.0]
[1731308397745,0.1,207.11,206.95,20.0]
[1731308397746,17.55645461,207.05,206.99,0.12549]
[1731308397929,17.55645461,207.07,206.99,0.12549]
[1731308398439,17.55645461,207.05,206.99,0.12549]
[1731308398825,17.55645461,207.05,206.97,20.0]
[1731308400160,17.55645461,207.07,206.98,17.68194461]
[1731308400453,17.55645461,207.07,206.98,41.45882861]
[1731308400657,17.55645461,207.01,206.94,20.0]
[1731308400836,17.55645461,207.01,206.75,24.41042238]
[1731308400837,17.55645461,206.97,206.87,21.9643]
[1731308401158,17.55645461,206.91,206.84,17.556454]
[1731308401358,17.55645461,206.89,206.76,22.2002]
[1731308401655,17.55645461,206.89,206.8,22.57941881]
[1731308401656,17.55645461,206.87,206.8,22.57941881]
[1731308401842,6.4828,206.89,206.83,0.12549]
[1731308402156,24.03925461,206.95,206.88,17.55645461]
[1731308402336,24.03925461,206.95,206.87,0.12549]
[1731308402337,17.55645461,206.99,206.9,17.55645461]
[1731308402648,17.55645461,206.99,206.87,0.12549]
[1731308402649,17.55645461,207.01,206.94,17.55645461]
[1731308403339,6.4828,207.06,207.0,17.55645461]
[1731308403531,5.75571647,207.1,207.02,17.55645461]
[1731308403730,17.55645461,207.08,207.0,17.55645461]
[1731308403933,17.55645461,207.08,207.01,0.12549]
[1731308404435,17.55645461,207.08,207.0,17.55645461]
[1731308404640,17.55645461,207.06,206.99,20.0]
[1731308405452,17.55645461,207.04,206.96,17.55645461]
[1731308405648,17.55645461,207.02,206.94,17.55645461]
[1731308406230,17.55645461,207.02,206.95,43.902374]
[1731308406433,17.55645461,207.02,206.95,20.0]
[1731308406630,17.55645461,207.0,206.93,20.0]
[1731308406855,17.55645461,206.98,206.91,20.12549]
[1731308407554,17.55645461,206.98,206.91,0.12549]
[1731308407753,17.55645461,207.02,206.94,17.55645461]
[1731308408130,17.55645461,207.0,206.92,17.55645461]
[1731308408333,17.55645461,206.98,206.91,0.12549]
[1731308409959,17.55645461,206.96,206.91,0.12549]
[1731308410143,6.3521,207.0,206.91,0.12549]
[1731308410144,17.55645461,206.94,206.91,0.12549]
[1731308410456,17.55645461,206.96,206.91,0.12549]
[1731308410832,17.55645461,206.98,206.91,0.12549]
[1731308411143,23.90855461,207.0,206.91,0.12549]
[1731308411554,17.55645461,206.98,206.91,0.12549]
[1731308412148,17.55645461,206.96,206.91,0.12549]
[1731308413153,17.55645461,206.98,206.91,0.12549]
[1731308414034,23.90855461,207.0,206.92,17.55645461]
[1731308415853,17.55645461,207.04,206.96,17.55645461]
[1731308416374,17.55645461,207.04,206.91,6.32129]
[1731308416375,17.55645461,207.08,207.02,17.55645461]
[1731308416550,17.55645461,207.08,207.0,17.55645461]
[1731308417063,17.55645461,207.08,207.01,20.0]
[1731308419551,17.55645461,207.1,207.02,17.55645461]
[1731308421054,6.09,207.13,207.06,17.55645461]
[1731308421352,17.55645461,207.16,207.08,17.55645461]
[1731308421547,6.4114,207.19,207.12,17.55645461]
[1731308421871,17.55645461,207.2,207.12,17.55645461]
[1731308422377,17.55645461,207.22,207.14,17.55645461]
[1731308422874,39.74165461,207.24,207.18,17.55645461]
[1731308423067,17.55645461,207.28,207.21,17.55645461]
[1731308423251,6.6226,207.29,207.14,0.12549]
[1731308423252,17.55645461,207.27,207.19,17.55645461]
[1731308423451,17.55645461,207.28,207.21,17.55645461]
[1731308423759,24.17905461,207.29,207.21,17.55645461]
[1731308424169,17.55645461,207.28,207.21,17.55645461]
[1731308424353,24.17905461,207.29,207.21,17.55645461]
[1731308424863,34.58317683,207.29,207.21,27.96057683]
[1731308425759,27.96057683,207.31,207.23,27.96057683]
[1731308426473,6.2653,207.35,207.23,27.96057683]
[1731308426474,27.96057683,207.29,207.23,27.96057683]
[1731308426873,27.96057683,207.29,207.21,27.96057683]
[1731308427060,27.96057683,207.27,207.19,27.96057683]
[1731308428956,27.96057683,207.29,207.21,27.96057683]
[1731308429988,27.96057683,207.27,207.19,27.96057683]
[1731308431463,27.96057683,207.27,207.21,27.96057683]
[1731308432285,27.96057683,207.27,207.16,27.96057683]
[1731308432471,27.96057683,207.27,207.2,27.96057683]
[1731308434786,27.96057683,207.27,207.18,27.96057683]
[1731308435570,27.96057683,207.25,207.18,27.96057683]
[1731308435766,27.96057683,207.27,207.18,27.96057683]
[1731308435971,27.96057683,207.27,207.19,0.12549]
[1731308436184,27.96057683,207.27,207.2,27.96057683]
[1731308436367,27.96057683,207.31,207.22,27.96057683]
[1731308437677,27.96057683,207.29,207.22,27.96057683]
[1731308437871,27.96057683,207.29,207.21,20.12549]
[1731308438187,27.96057683,207.27,207.21,0.12549]
[1731308441588,27.96057683,207.27,207.2,27.96057683]
[1731308441791,27.96057683,207.25,207.18,27.96057683]
[1731308442176,27.96057683,207.25,207.19,0.12549]
[1731308442892,27.96057683,207.27,207.19,0.12549]
[1731308443588,27.96057683,207.27,207.2,27.96057683]
[1731308443780,27.96057683,207.25,207.18,47.96057683]
[1731308444093,27.96057683,207.25,207.19,0.12549]
[1731308444490,27.96057683,207.23,207.15,19.292941]
[1731308444693,27.96057683,207.23,207.14,28.08606683]
[1731308444997,27.96057683,207.23,207.14,50.03571233]
[1731308445195,27.96057683,207.23,207.14,30.73915733]
[1731308445599,27.96057683,207.23,207.16,0.12549]
[1731308446279,27.96057683,207.21,207.14,0.12549]
[1731308447001,17.48844672,207.21,207.14,0.12549]
[1731308449795,17.48844672,207.23,207.14,0.12549]
[1731308450185,17.48844672,207.21,207.14,0.12549]
[1731308453089,17.48844672,207.25,207.17,17.48844672]
[1731308453401,17.48844672,207.28,207.19,17.48844672]
[1731308454007,17.48844672,207.26,207.17,17.48844672]
[1731308454386,17.48844672,207.26,207.18,0.12549]
[1731308456312,17.48844672,207.26,207.19,17.48844672]
[1731308457999,17.48844672,207.28,207.2,0.12549]
[1731308458507,17.48844672,207.28,207.21,17.48844672]
[1731308459408,17.48844672,207.3,207.21,17.48844672]
[1731308459916,17.48844672,207.32,207.24,0.12549]
[1731308460518,4.8225,207.36,207.24,0.12549]
[1731308460519,17.48844672,207.3,207.24,0.12549]
[1731308461400,17.48844672,207.3,207.22,18.69938865]
[1731308461600,17.48844672,207.28,207.22,16.055]
[1731308461812,17.48844672,207.28,207.19,23.78854672]
[1731308462802,17.48844672,207.3,207.21,17.48844672]
[1731308463014,17.48844672,207.3,207.22,0.12549]
[1731308463308,6.3212,207.37,207.25,17.48844672]
[1731308463309,17.48844672,207.32,207.25,17.48844672]
[1731308463504,17.48844672,207.28,207.22,20.0]
[1731308463742,17.48844672,207.28,207.21,17.48844672]
[1731308463907,17.48844672,207.26,207.2,20.0]
[1731308464100,0.1,207.32,207.17,15.9872]
[1731308464300,17.48844672,207.22,207.17,15.9872]
[1731308464502,17.48844672,207.22,207.15,17.48844672]
[1731308464810,17.48844672,207.18,207.14,0.12549]
[1731308465200,17.48844672,207.2,207.14,0.12549]
[1731308465922,17.48844672,207.18,207.14,0.12549]
[1731308466812,17.48844672,207.16,207.14,0.12549]
[1731308467015,9.36580085,207.15,207.14,0.12549]
[1731308467200,3.60166045,207.15,207.14,0.12549]
[1731308467525,17.48844672,207.16,207.14,0.12549]
[1731308468397,17.48844672,207.18,207.14,0.12549]
[1731308468811,17.48844672,207.16,207.14,0.12549]
[1731308469703,3.59846679,207.15,207.14,0.12549]
[1731308470322,17.48844672,207.16,207.14,0.12549]
[1731308471623,3.59671968,207.15,207.14,0.12549]
[1731308471924,0.1,207.12,206.97,16.5882]
[1731308472104,17.48844672,207.01,206.96,17.488446]
[1731308472306,17.48844672,206.99,206.96,17.488446]
[1731308472603,17.48844672,206.97,206.91,16.71369]
[1731308472823,6.6421,207.03,206.92,17.48844672]
[1731308472824,17.48844672,206.99,206.92,17.48844672]
[1731308473005,6.6421,207.03,206.94,17.48844672]
[1731308473006,17.48844672,207.03,206.94,17.48844672]
[1731308473324,17.48844672,207.01,206.94,17.48844672]
[1731308473510,17.48844672,207.01,206.92,17.48844672]
[1731308473709,17.48844672,207.01,206.93,23.776884]
[1731308474026,17.48844672,207.05,206.96,17.48844672]
[1731308474525,17.48844672,207.05,206.98,17.48844672]
[1731308475029,17.48844672,207.05,206.96,17.48844672]
[1731308475224,6.2141,207.13,206.99,43.902374]
[1731308475405,17.48844672,207.1,207.02,17.48844672]
[1731308475605,17.48844672,207.08,207.01,0.12549]
[1731308475809,17.48844672,207.08,207.0,17.48844672]
[1731308476008,17.48844672,207.06,206.98,17.48844672]
[1731308476408,17.48844672,207.08,207.0,17.48844672]
[1731308477626,17.48844672,207.06,206.98,17.48844672]
[1731308478934,17.48844672,207.04,206.96,17.48844672]
[1731308480424,17.48844672,207.06,206.98,17.48844672]
[1731308481133,17.48844672,207.04,206.96,17.48844672]
[1731308481425,17.48844672,207.02,206.94,17.48844672]
[1731308481608,17.48844672,207.0,206.92,17.48844672]
[1731308481805,17.48844672,207.02,206.94,17.48844672]
[1731308482214,17.48844672,207.02,206.95,0.12549]
[1731308482720,17.48844672,207.02,206.94,17.48844672]
[1731308483836,17.48844672,207.0,206.92,17.48844672]
[1731308485317,17.48844672,206.98,206.91,0.12549]
[1731308485711,17.48844672,206.94,206.91,0.12549]
[1731308485918,17.48844672,207.0,206.91,0.12549]
[1731308485919,17.48844672,206.92,206.91,0.12549]
[1731308487545,37.48844672,206.92,206.91,0.12549]
[1731308487836,17.48844672,206.92,206.91,0.12549]
[1731308488029,6.1949,206.93,206.91,0.12549]
[1731308488218,17.48844672,206.92,206.91,0.12549]
[1731308489615,17.48844672,206.94,206.91,0.12549]
[1731308490042,17.48844672,206.96,206.91,0.12549]
[1731308490552,17.48844672,206.98,206.91,0.12549]
[1731308491134,17.48844672,206.96,206.91,0.12549]
[1731308491343,17.48844672,206.94,206.91,0.12549]
[1731308491645,17.48844672,206.92,206.91,0.12549]
[1731308491822,17.48844672,206.94,206.91,0.12549]
[1731308493041,17.48844672,207.0,206.92,17.48844672]
[1731308493253,6.2764,207.03,206.94,17.48844672]
[1731308493254,17.48844672,207.02,206.94,17.48844672]
[1731308494250,17.48844672,207.06,206.97,23.776884]
[1731308494431,17.48844672,207.05,206.97,17.48844672]
[1731308494634,17.48844672,207.03,206.95,17.48844672]
[1731308496622,17.48844672,207.03,206.92,2.63913017]
[1731308496623,17.48844672,207.05,206.97,17.48844672]
[1731308496828,28.02126405,207.06,206.99,28.02126405]
[1731308497653,28.02126405,207.05,206.97,28.02126405]
[1731308497843,28.02126405,207.03,206.95,28.02126405]
[1731308498145,28.02126405,207.07,206.99,28.02126405]
[1731308498548,28.02126405,207.05,206.97,28.02126405]
[1731308498753,28.02126405,207.03,206.95,28.02126405]
[1731308501457,28.02126405,207.05,206.97,28.02126405]
[1731308501641,28.02126405,207.07,206.99,28.02126405]
[1731308501843,28.02126405,207.07,207.01,28.02126405]
[1731308502047,28.02126405,207.09,207.01,28.02126405]
[1731308502353,28.02126405,207.09,207.03,28.02126405]
[1731308502658,28.02126405,207.07,206.99,28.02126405]
[1731308502835,28.02126405,207.09,207.01,28.02126405]
[1731308504355,28.02126405,207.11,207.03,28.02126405]
[1731308506454,28.02126405,207.16,207.08,28.02126405]
[1731308506659,28.02126405,207.18,207.1,28.02126405]
[1731308506966,28.02126405,207.2,207.12,28.02126405]
[1731308507254,28.02126405,207.16,207.08,28.02126405]
[1731308507643,4.8256,207.23,207.02,0.1]
[1731308507644,28.02126405,207.18,207.1,28.02126405]
[1731308508656,28.02126405,207.18,207.11,20.0]
[1731308509641,28.02126405,207.2,207.13,20.0]
[1731308510763,28.02126405,207.16,207.08,28.02126405]
[1731308510940,28.02126405,207.18,207.1,28.02126405]
[1731308511260,28.02126405,207.2,207.13,20.0]
[1731308511960,28.02126405,207.18,207.13,20.0]
[1731308512258,28.02126405,207.18,207.11,20.0]
[1731308513965,28.02126405,207.2,207.12,51.92363805]
[1731308514259,28.02126405,207.2,207.13,20.0]
[1731308514460,6.476,207.24,207.13,20.0]
[1731308514461,28.02126405,207.22,207.14,28.02126405]
[1731308515439,28.02126405,207.22,207.13,20.0]
[1731308516035,28.02126405,207.22,207.14,28.02126405]
[1731308516303,28.02126405,207.24,207.15,20.0]
[1731308516455,28.02126405,207.28,207.21,20.0]
[1731308516647,28.02126405,207.3,207.23,20.0]
[1731308517052,28.02126405,207.28,207.2,28.02126405]
[1731308517252,28.02126405,207.28,207.19,20.0]
[1731308517562,28.02126405,207.26,207.19,20.0]
[1731308518268,28.02126405,207.24,207.17,20.0]
[1731308518772,16.8837,207.3,207.15,20.0]
[1731308518773,28.02126405,207.22,207.15,20.0]
[1731308519347,28.02126405,207.24,207.15,20.0]
[1731308520148,28.02126405,207.24,207.14,28.02126405]
[1731308520149,28.02126405,207.22,207.14,28.02126405]
[1731308520350,28.02126405,207.18,207.11,15.3185]
[1731308520554,28.02126405,207.16,207.08,28.02126405]
[1731308520769,28.02126405,207.14,207.06,44.19816405]
[1731308520969,28.02126405,207.12,207.06,16.1769]
[1731308521374,28.02126405,207.1,207.04,6.6495]
[1731308521575,28.02126405,207.08,207.0,43.26386405]
[1731308521875,0.1,207.16,206.98,6.341]
[1731308521876,28.02126405,207.06,206.98,34.36226405]
[1731308522283,28.02126405,207.08,207.0,28.02126405]
[1731308522454,28.02126405,207.12,207.05,0.12549]
[1731308522856,28.02126405,207.14,207.06,28.02126405]
[1731308523069,0.1,207.23,207.08,28.02126405]
[1731308523070,28.02126405,207.16,207.08,28.02126405]
[1731308523263,28.02126405,207.16,207.01,0.1]
[1731308523264,28.02126405,207.18,207.1,28.02126405]
[1731308523460,28.02126405,207.18,207.11,23.902374]
[1731308523761,28.02126405,207.18,207.12,20.0]
[1731308523970,28.02126405,207.2,207.12,48.02126405]
[1731308524175,28.02126405,207.2,207.12,20.0]
[1731308524483,28.02126405,207.14,207.08,20.0]
[1731308525480,28.02126405,207.14,207.07,15.8713]
[1731308525687,28.02126405,207.12,207.05,20.0]
[1731308526174,28.02126405,207.14,207.06,28.14675405]
[1731308526375,28.02126405,207.16,207.09,20.0]
[1731308526588,28.02126405,207.2,207.13,20.0]
[1731308526752,28.02126405,207.16,207.09,6.3977]
[1731308526963,28.02126405,207.14,207.1,20.0]
[1731308527273,0.12549,207.23,207.03,6.3977]
[1731308527274,28.02126405,207.12,207.03,6.3977]
[1731308527479,28.02126405,207.09,207.03,6.3977]
[1731308527682,28.02126405,207.11,207.03,6.3977]
[1731308527873,28.02126405,207.09,207.03,6.3977]
[1731308528189,28.02126405,207.07,207.0,28.02126405]
[1731308528481,28.02126405,207.11,207.02,28.02126405]
[1731308529060,28.02126405,207.09,207.02,28.02126405]
[1731308529386,28.02126405,207.07,206.98,34.41606405]
[1731308529569,28.02126405,207.07,206.98,28.02126405]
[1731308529771,28.02126405,207.07,206.94,16.1264]
[1731308529772,28.02126405,207.09,207.02,28.02126405]
[1731308529975,4.8272,207.16,206.94,16.2264]
[1731308529976,28.02126405,207.07,206.98,28.02126405]
[1731308530174,28.02126405,207.09,207.0,28.02126405]
[1731308530480,28.02126405,207.07,207.0,28.02126405]
[1731308530780,28.02126405,207.07,206.98,28.02126405]
[1731308531392,28.02126405,207.03,206.96,28.02126405]
[1731308531690,28.02126405,207.05,206.98,28.02126405]
[1731308531865,28.02126405,207.05,206.97,0.12549]
[1731308532780,28.02126405,207.05,206.97,23.902374]
[1731308532962,28.02126405,207.09,207.01,20.0]
[1731308533167,28.02126405,207.09,207.02,28.02126405]
[1731308533363,28.02126405,207.09,207.03,20.0]
[1731308533586,28.02126405,207.09,207.01,20.0]
[1731308533892,28.02126405,207.07,207.01,20.0]
[1731308534264,28.02126405,207.09,207.01,20.0]
[1731308535169,28.02126405,207.07,207.01,20.0]
[1731308536584,28.02126405,207.05,206.98,28.02126405]
[1731308536787,28.02126405,207.05,206.96,28.02126405]
[1731308537794,28.02126405,207.03,206.94,44.14766405]
[1731308538084,4.8297,207.06,206.94,44.14766405]
[1731308538085,28.02126405,207.01,206.94,16.1264]
[1731308538267,28.02126405,207.01,206.92,34.41606405]
[1731308538466,0.1,207.1,206.92,34.41606405]
[1731308538467,28.02126405,207.05,206.96,28.02126405]
[1731308539785,28.02126405,207.07,206.98,28.02126405]
[1731308539984,28.02126405,207.09,207.01,20.0]
[1731308540380,28.02126405,207.05,206.99,20.0]
[1731308540775,17.51271778,207.07,206.99,37.51271778]
[1731308540982,17.51271778,207.05,206.98,20.0]
[1731308541885,17.51271778,207.03,206.95,17.51271778]
[1731308542266,17.51271778,207.03,206.93,41.41509178]
[1731308542690,17.51271778,207.05,206.97,17.51271778]
[1731308543289,6.0154,207.11,206.99,17.51271778]
[1731308543491,17.51271778,207.05,206.98,20.0]
[1731308543987,17.51271778,207.03,206.98,20.0]